bitfinex-derivatives/quotes_SOLF0:USTF0_20250421
["timestamp","ask_amount","ask_price","bid_price","bid_amount"]
[1745254881176,7.45379952,135.11,135.03,402.92]
[1745254881472,7.4011,135.1,135.04,22.43418703]
[1745254882077,7.4011,135.1,135.06,7.4032]
[1745254882478,7.45379952,135.11,135.04,22.43418703]
[1745254882777,0.05299952,135.11,135.04,22.43418703]
[1745254883276,0.05299952,135.11,135.07,22.43418703]
[1745254883477,0.05299952,135.11,135.08,43.94]
[1745254883978,2.1254,135.18,135.08,402.94]
[1745254884179,7.3983,135.15,135.11,7.3999]
[1745254884374,2.1254,135.18,135.08,43.94]
[1745254884570,2.1254,135.18,135.08,66.37418703]
[1745254884776,7.3997,135.13,135.09,7.4013]
[1745254885079,0.04798096,135.12,135.1,0.05299952]
[1745254885275,0.04798096,135.12,135.1,7.45359952]
[1745254885474,0.04798096,135.12,135.1,0.05299952]
[1745254885876,7.44818096,135.12,135.1,0.05299952]
[1745254886076,0.04798096,135.12,135.1,0.05299952]
[1745254887583,0.04798096,135.12,135.1,7.45379952]
[1745254887773,0.04798096,135.12,135.1,0.05299952]
[1745254888078,7.44798096,135.12,135.1,0.05299952]
[1745254888575,0.04798096,135.12,135.1,0.05299952]
[1745254889384,7.4004,135.11,135.1,0.05299952]
[1745254889682,0.04798096,135.12,135.1,0.05299952]
[1745254890880,7.4004,135.11,135.1,0.05299952]
[1745254891281,0.04798096,135.12,135.1,0.05299952]
[1745254891684,7.4004,135.11,135.1,0.05299952]
[1745254893083,7.44818096,135.12,135.1,0.05299952]
[1745254893785,0.04798096,135.12,135.1,0.05299952]
[1745254894387,7.44798096,135.12,135.1,0.05299952]
[1745254894789,0.04798096,135.12,135.1,0.05299952]
[1745254895277,0.04798096,135.12,135.11,7.4004]
[1745254896083,0.04798096,135.12,135.1,0.05299952]
[1745254896480,2.94,135.15,135.1,0.05299952]
[1745254897687,0.04680533,135.14,135.1,0.05299952]
[1745254897986,0.04680533,135.14,135.13,7.399]
[1745254898178,25.67,135.15,135.13,43.94]
[1745254898382,3.9699,135.22,135.14,22.43418703]
[1745254898585,2.83254264,135.26,135.17,22.43418703]
[1745254898785,6.77871516,135.27,135.18,43.94]
[1745254899083,7.3931,135.25,135.18,43.94]
[1745254899283,3.943,135.27,135.18,43.94]
[1745254899488,0.05341116,135.24,135.21,0.0498613]
[1745254899988,90.83207061,135.31,135.22,43.94]
[1745254900180,2.83995421,135.3,135.23,43.94]
[1745254900380,90.83207061,135.31,135.23,43.94]
[1745254900589,98.22207061,135.31,135.26,7.3919]
[1745254900890,90.83207061,135.31,135.23,43.94]
[1745254901092,7.44129028,135.3,135.27,0.05332696]
[1745254901288,10.28331775,135.3,135.27,0.05332696]
[1745254901484,10.28331775,135.3,135.17,37.22818703]
[1745254901485,22.43418703,135.28,135.17,45.34]
[1745254901689,2.84114282,135.27,135.17,45.34]
[1745254901885,22.43418703,135.25,135.17,45.34]
[1745254902086,6.99974282,135.24,135.17,45.34]
[1745254902290,4.1586,135.24,135.17,45.34]
[1745254902591,25.27524374,135.29,135.17,45.34]
[1745254902786,0.04756699,135.22,135.21,7.395]
[1745254902987,2.84105671,135.28,135.17,45.34]
[1745254903286,0.05542869,135.23,135.2,0.05372606]
[1745254904594,22.43418703,135.22,135.2,0.05372606]
[1745254904890,29.82888703,135.22,135.2,0.05372606]
[1745254905191,22.43418703,135.22,135.2,0.05372606]
[1745254905387,7.016284,135.21,135.17,45.34]
[1745254905589,22.43418703,135.19,135.13,585.9]
[1745254906093,7.3966,135.18,135.13,593.2992]
[1745254906594,7.3982,135.15,135.14,0.05293557]
[1745254906791,0.05006841,135.17,135.14,0.05293557]
[1745254907891,10.28906611,135.17,135.14,0.05293557]
[1745254908088,2.89166611,135.17,135.14,0.05293557]
[1745254908294,0.05006841,135.17,135.14,0.05293557]
[1745254908498,2.89299852,135.17,135.14,0.05293557]
[1745254908693,2.89299852,135.17,135.1,45.34]
[1745254908896,7.3983,135.15,135.1,52.7409]
[1745254909192,7.3983,135.15,135.1,45.34]
[1745254909393,2.84293011,135.17,135.1,45.34]
[1745254909694,22.43418703,135.18,135.1,45.34]
[1745254909993,0.04815924,135.15,135.12,0.04120838]
[1745254910393,0.04815924,135.15,135.13,7.399]
[1745254911591,0.04815924,135.15,135.12,0.04120838]
[1745254912992,0.04815924,135.15,135.12,7.44070838]
[1745254913596,0.04815924,135.15,135.13,7.3993]
[1745254914095,0.04815924,135.15,135.12,0.04120838]
[1745254914394,0.04815924,135.15,135.12,7.44080838]
[1745254914997,0.04815924,135.15,135.12,0.04120838]
[1745254915497,0.04815924,135.15,135.14,7.3988]
[1745254916301,0.04815924,135.15,135.13,7.3991]
[1745254916495,0.04815924,135.15,135.12,0.04120838]
[1745254917499,0.04815924,135.15,135.14,7.3988]
[1745254919099,0.04815924,135.15,135.12,0.04120838]
[1745254919605,0.04815924,135.15,135.01,359.0]
[1745254919902,22.11,134.93,134.47,1.29063363]
[1745254920090,365.0,135.11,134.47,1.29063363]
[1745254920091,22.43418703,134.68,134.47,1.29063363]
[1745254920292,22.43418703,134.61,134.55,477.33408698]
[1745254920492,22.43418703,134.58,134.55,477.33408698]
[1745254920696,22.43418703,134.61,134.55,477.33408698]
[1745254920892,0.04945127,134.58,134.55,477.33408698]
[1745254921498,36.82749271,134.56,134.55,402.12728698]
[1745254921699,8.95670825,134.56,134.55,402.12728698]
[1745254921901,16.38740825,134.56,134.55,402.12728698]
[1745254922099,8.95670825,134.56,134.55,402.12728698]
[1745254922306,8.95670825,134.56,134.55,454.02728698]
[1745254922501,16.39670825,134.56,134.55,402.12728698]
[1745254922707,8.95670825,134.56,134.55,402.12728698]
[1745254922904,16.39670825,134.56,134.55,402.12728698]
[1745254923199,16.39670825,134.56,134.55,350.10728698]
[1745254923409,8.95670825,134.56,134.43,51.9]
[1745254923604,3.65410377,134.55,134.49,36.82749271]
[1745254923800,8.95670825,134.54,134.52,36.82749271]
[1745254924001,23.34,134.61,134.52,36.82749271]
[1745254924002,9.01060015,134.53,134.52,21.9615668]
[1745254924202,23.34,134.61,134.52,147.93538542]
[1745254924510,23.34,134.61,134.6,36.82749271]
[1745254924709,23.34,134.61,134.6,88.80749271]
[1745254924710,20.1163,134.61,134.6,88.80749271]
[1745254925004,36.82749271,134.8,134.6,176.91073253]
[1745254925309,0.04905497,134.71,134.69,0.04813309]
[1745254925504,0.04905497,134.71,134.64,36.82749271]
[1745254925711,182.29299025,134.61,134.6,51.98]
[1745254925908,0.04905497,134.71,134.6,125.63498542]
[1745254926104,121.76984389,134.79,134.67,51.65549845]
[1745254926304,121.76984389,134.79,134.7,88.81549845]
[1745254926606,0.05565747,134.76,134.73,36.82749271]
[1745254926813,0.05565747,134.76,134.73,88.80749271]
[1745254927309,0.05565747,134.76,134.73,44.79715243]
[1745254927810,0.05565747,134.76,134.73,596.1829074]
[1745254928507,0.05565747,134.76,134.5,4.0573]
[1745254928711,36.82749271,134.74,134.59,36.82749271]
[1745254928911,21.98,134.78,134.6,52.0]
[1745254929106,0.04873915,134.68,134.61,587.4]
[1745254929306,0.04873915,134.68,134.62,36.82749271]
[1745254929506,36.82749271,134.76,134.62,36.82749271]
[1745254929707,0.05131728,134.66,134.62,36.82749271]
[1745254929910,36.82749271,134.73,134.61,587.4]
[1745254930106,0.05147811,134.65,134.61,587.4]
[1745254930316,36.82749271,134.7,134.62,52.02]
[1745254930617,0.05193042,134.64,134.61,52.02]
[1745254930815,36.82749271,134.67,134.61,52.02]
[1745254931116,0.0512694,134.64,134.61,52.02]
[1745254931617,0.0512694,134.64,134.58,587.62]
[1745254931913,0.0512694,134.64,134.59,52.02]
[1745254932613,36.82749271,134.73,134.59,88.84749271]
[1745254932815,36.82749271,134.76,134.62,36.82749271]
[1745254933118,2.88,134.72,134.68,36.82749271]
[1745254933420,1.48411991,134.76,134.71,36.82749271]
[1745254933710,1.48411991,134.76,134.62,6.1777]
[1745254933711,0.04991098,134.75,134.72,587.85299168]
[1745254933910,1.48411991,134.76,134.73,52.04]
[1745254934107,0.0556401,134.75,134.74,52.04]
[1745254935212,668.93062552,134.75,134.48,1.29211919]
[1745254935513,36.82749271,134.62,134.49,647.53829941]
[1745254935712,36.82749271,134.62,134.5,1.48698884]
[1745254936118,36.82749271,134.62,134.52,7.4326]
[1745254936319,36.82749271,134.62,134.53,1.48665725]
[1745254936614,0.04844121,134.58,134.54,52.04]
[1745254937514,14.93,134.62,134.54,88.86749271]
[1745254937715,16.52,134.61,134.54,88.86749271]
[1745254938317,16.52,134.61,134.54,52.04]
[1745254938819,0.05349544,134.59,134.56,0.0472109]
[1745254940915,36.88098815,134.59,134.56,0.0472109]
[1745254941121,36.88098815,134.59,134.5,52.04]
[1745254941421,16.52,134.61,134.49,587.8]
[1745254941422,36.82749271,134.56,134.49,587.8]
[1745254942323,0.04678138,134.54,134.49,587.8]
[1745254942925,0.04678138,134.54,134.51,7.4333]
[1745254943126,0.04678138,134.54,134.49,587.8]
[1745254944125,0.04678138,134.54,134.5,7.4339]
[1745254944429,0.04678138,134.54,134.51,50.6]
[1745254944816,0.04678138,134.54,134.52,7.4328]
[1745254945126,0.04678138,134.54,134.51,50.6]
[1745254947129,0.04678138,134.54,134.47,50.62]
[1745254947327,3.77944387,134.55,134.43,50.62]
[1745254947533,36.82749271,134.5,134.42,590.3209]
[1745254947833,36.82749271,134.5,134.41,4.1082]
[1745254948030,36.87866191,134.47,134.39,50.62]
[1745254948231,36.82749271,134.44,134.35,641.0392]
[1745254948430,36.82749271,134.44,134.36,1.48853825]
[1745254948631,36.82749271,134.41,134.34,7.4424]
[1745254948830,0.05084722,134.41,134.32,36.82749271]
[1745254949131,87.46749271,134.44,134.32,36.82749271]
[1745254949527,0.05063678,134.38,134.29,50.64]
[1745254949732,0.05063678,134.38,134.34,7.4425]
[1745254949931,36.82749271,134.41,134.29,87.46749271]
[1745254950134,0.0542573,134.35,134.29,87.46749271]
[1745254950531,36.82749271,134.47,134.32,36.82749271]
[1745254950732,3.76959098,134.46,134.32,36.82749271]
[1745254951537,36.82749271,134.44,134.29,50.64]
[1745254951837,0.04936891,134.4,134.3,36.82749271]
[1745254952033,0.04936891,134.4,134.35,0.04963754]
[1745254952336,0.04714946,134.36,134.35,50.70963754]
[1745254952538,36.82749271,134.47,134.35,50.66]
[1745254952732,3.77456567,134.46,134.36,36.82749271]
[1745254952934,36.82749271,134.53,134.39,36.82749271]
[1745254953137,3.77771195,134.52,134.42,36.82749271]
[1745254953334,3.77771195,134.55,134.42,36.82749271]
[1745254953534,3.77771195,134.55,134.45,36.82749271]
[1745254953736,53.34749271,134.61,134.47,0.05252242]
[1745254953737,3.77771195,134.6,134.47,0.05252242]
[1745254953932,3.77771195,134.6,134.46,50.66]
[1745254953933,36.82749271,134.56,134.46,50.66]
[1745254954133,3.78502736,134.55,134.46,50.66]
[1745254954537,73.65498542,134.47,134.26,52.72]
[1745254954729,36.82749271,134.43,134.29,36.82749271]
[1745254954932,3.78502736,134.46,134.29,36.82749271]
[1745254954933,0.04871309,134.38,134.35,0.0555038]
[1745254955233,36.82749271,134.48,134.36,52.72]
[1745254955426,3.78977392,134.47,134.36,52.72]
[1745254955628,36.82749271,134.45,134.36,52.72]
[1745254955836,3.78977392,134.44,134.36,52.72]
[1745254956038,3.78977392,134.44,134.41,7.4386]
[1745254956236,3.78977392,134.43,134.41,7.4386]
[1745254956437,36.82749271,134.45,134.39,0.04903635]
[1745254956738,3.84357287,134.44,134.39,0.04903635]
[1745254956939,0.04809475,134.44,134.39,0.04903635]
[1745254957237,0.04809475,134.44,134.43,7.4379]
[1745254957538,3.85121736,134.44,134.43,7.4379]
[1745254957940,3.85121736,134.44,134.42,0.05206754]
[1745254958142,3.80312261,134.43,134.38,2.1009]
[1745254958330,3.80312261,134.42,134.41,7.439]
[1745254959436,0.04809475,134.44,134.38,2.1009]
[1745254959437,0.04809475,134.44,134.43,7.4379]
[1745254959640,36.82749271,134.53,134.43,52.72]
[1745254960033,36.82749271,134.57,134.43,52.72]
[1745254960238,36.82749271,134.57,134.45,36.82749271]
[1745254960439,53.34749271,134.61,134.48,36.82749271]
[1745254960741,16.52,134.61,134.49,54.7141]
[1745254961039,0.04767353,134.56,134.55,7.431]
[1745254961240,0.04767353,134.56,134.55,60.151]
[1745254961441,16.52,134.61,134.55,52.72]
[1745254961743,0.04983221,134.57,134.55,52.72]
[1745254962042,0.04983221,134.57,134.56,7.4307]
[1745254962438,16.52,134.61,134.55,52.72]
[1745254962642,16.52,134.61,134.6,7.4285]
[1745254962643,1e-08,134.61,134.6,7.4285]
[1745254962843,24.29437335,134.71,134.6,52.72]
[1745254963045,61.12186606,134.71,134.63,7.4263]
[1745254963341,4.1562,134.74,134.6,52.72]
[1745254963342,36.82749271,134.68,134.6,52.72]
[1745254963733,0.0489575,134.65,134.63,0.05100924]
[1745254964743,0.0489575,134.65,134.63,7.47740924]
[1745254964943,0.0489575,134.65,134.63,0.05100924]
[1745254965245,36.82749271,134.64,134.5,641.56]
[1745254965446,36.82749271,134.53,134.46,52.72]
[1745254965643,36.82749271,134.53,134.51,7.4334]
[1745254965843,36.82749271,134.56,134.46,52.72]
[1745254966047,4.1521096,134.55,134.46,52.72]
[1745254966345,0.05659643,134.52,134.5,0.05457697]
[1745254966542,0.05659643,134.52,134.51,52.7]
[1745254966745,4.1521096,134.55,134.51,52.7]
[1745254966945,25.26,134.58,134.51,52.7]
[1745254967346,25.26,134.58,134.51,641.4]
[1745254967647,25.26,134.58,134.52,36.82749271]
[1745254967848,25.26,134.58,134.57,7.4301]
[1745254968047,25.26,134.58,134.57,60.1301]
[1745254968441,0.04905461,134.59,134.57,52.7]
[1745254969246,0.04905461,134.59,134.57,60.1298]
[1745254969752,0.04905461,134.59,134.57,52.7]
[1745254970750,0.04905461,134.59,134.54,0.05453936]
[1745254970950,0.04905461,134.59,134.55,52.7]
[1745254971249,7.47825461,134.59,134.55,52.7]
[1745254971548,0.04905461,134.59,134.55,52.7]
[1745254972340,2.85416343,134.59,134.55,52.7]
[1745254972545,0.04905461,134.59,134.55,52.7]
[1745254972946,0.04905461,134.59,134.54,0.05453936]
[1745254973452,2.80808722,134.58,134.54,0.05453936]
[1745254973952,7.01822411,134.59,134.54,52.75453936]
[1745254974247,4.16108228,134.6,134.54,89.58203207]
[1745254974451,0.93818228,134.6,134.59,7.429]
[1745254974750,36.82749271,134.7,134.59,52.7]
[1745254974940,2.8156888,134.68,134.59,52.7]
[1745254975144,2.8156888,134.67,134.6,36.82749271]
[1745254975342,2.8156888,134.66,134.6,36.82749271]
[1745254975544,2.86607659,134.65,134.62,0.05495835]
[1745254975749,0.05038779,134.65,134.62,0.05495835]
[1745254975948,10.2422888,134.64,134.62,0.05495835]
[1745254976154,0.05038779,134.65,134.62,0.05495835]
[1745254977048,0.05038779,134.65,134.63,7.4265]
[1745254977245,0.05038779,134.65,134.62,0.05495835]
[1745254978250,0.05038779,134.65,134.64,7.4263]
[1745254978450,0.05038779,134.65,134.64,52.68]
[1745254978856,0.05038779,134.65,134.62,0.05495835]
[1745254981556,23.53,134.69,134.62,36.88245106]
[1745254981750,23.53,134.69,134.65,36.82749271]
[1745254981960,23.53,134.69,134.62,52.73495835]
[1745254982252,36.82749271,134.68,134.59,588.6]
[1745254982553,36.82749271,134.65,134.57,52.68]
[1745254983056,44.25429271,134.63,134.62,0.05043114]
[1745254983248,44.25429271,134.63,134.57,52.68]
[1745254983249,36.82749271,134.63,134.57,52.68]
[1745254983451,0.04777446,134.65,134.57,52.68]
[1745254983652,7.4261,134.65,134.59,7.4287]
[1745254983957,7.4261,134.65,134.57,52.68]
[1745254984156,36.82749271,134.66,134.57,52.68]
[1745254984353,0.04693002,134.62,134.6,0.05391878]
[1745254984555,4.86755221,134.62,134.53,51.22]
[1745254984759,2.0034,134.62,134.53,51.22]
[1745254985054,20.5034,134.62,134.53,51.22]
[1745254985655,0.05432631,134.59,134.56,0.05088849]
[1745254985859,18.5,134.62,134.58,36.82749271]
[1745254986064,2.0108,134.7,134.59,51.22]
[1745254986560,2.0108,134.7,134.64,7.4262]
[1745254986762,2.0108,134.7,134.64,51.22]
[1745254987058,0.05583978,134.68,134.66,0.05525583]
[1745254987253,0.05583978,134.68,134.6,51.22]
[1745254987450,36.82749271,134.66,134.57,2.0791]
[1745254987650,36.82749271,134.67,134.57,2.0791]
[1745254988362,0.05006835,134.63,134.61,0.04893573]
[1745254989465,0.05006835,134.63,134.61,51.26893573]
[1745254989665,0.05006835,134.63,134.61,58.69663573]
[1745254989866,0.05006835,134.63,134.61,51.26893573]
[1745254990165,7.4274,134.62,134.61,0.04893573]
[1745254990367,0.05006835,134.63,134.61,0.04893573]
[1745254990764,7.47706835,134.63,134.61,0.04893573]
[1745254991165,0.05006835,134.63,134.61,0.04893573]
[1745254992364,12.3,134.68,134.62,88.04749271]
[1745254992770,12.3,134.68,134.62,90.14799271]
[1745254993167,12.3,134.68,134.66,7.4248]
[1745254993462,0.04924015,134.68,134.62,90.14799271]
[1745254993668,0.04924015,134.68,134.67,7.4243]
[1745254993970,0.04924015,134.68,134.66,0.05698352]
[1745254994269,0.04924015,134.68,134.66,7.48198352]
[1745254994466,0.04924015,134.68,134.66,0.05698352]
[1745254994767,7.47364015,134.68,134.66,0.05698352]
[1745254994964,0.04924015,134.68,134.66,0.05698352]
[1745254995163,36.87673286,134.68,134.61,639.62]
[1745254995368,0.04924015,134.68,134.61,639.62]
[1745254996270,0.04924015,134.68,134.63,0.05638553]
[1745254996466,7.47374015,134.68,134.63,0.05638553]
[1745254996666,0.04924015,134.68,134.63,0.05638553]
[1745254996863,7.425,134.67,134.63,0.05638553]
[1745254997067,0.04924015,134.68,134.63,0.05638553]
[1745254997568,7.425,134.67,134.63,0.05638553]
[1745254997769,0.04924015,134.68,134.63,0.05638553]
[1745254998771,7.47364015,134.68,134.63,7.48318553]
[1745254999172,0.04924015,134.68,134.63,7.48318553]
[1745254999472,7.47354015,134.68,134.63,7.48318553]
[1745254999668,0.04924015,134.68,134.63,0.05638553]
[1745255000073,0.04924015,134.68,134.64,7.426]
[1745255000271,0.04924015,134.68,134.63,0.05638553]
[1745255001074,7.4249,134.67,134.63,0.05638553]
[1745255001375,0.04924015,134.68,134.63,7.48318553]
[1745255001977,0.04924015,134.68,134.65,7.4254]
[1745255002275,0.04924015,134.68,134.63,0.05638553]
[1745255004579,0.04924015,134.68,134.67,7.4246]
[1745255006169,0.04924015,134.68,134.66,57.18063517]
[1745255006570,0.04924015,134.68,134.66,49.75573517]
[1745255006979,0.04924015,134.68,134.66,57.18063517]
[1745255007178,0.04924015,134.68,134.66,49.75573517]
[1745255007580,2.89888183,134.68,134.66,49.75573517]
[1745255007775,0.04924015,134.68,134.66,0.05573517]
[1745255007982,2.84964168,134.67,134.66,0.05573517]
[1745255008779,2.84964168,134.67,134.66,7.48093517]
[1745255008981,2.84964168,134.67,134.66,0.05573517]
[1745255009879,2.84901516,134.67,134.66,0.05573517]
[1745255010775,2.84901516,134.67,134.62,57.1271]
[1745255011081,2.84901516,134.66,134.62,49.7]
[1745255011276,2.84901516,134.65,134.62,49.7]
[1745255011485,2.84901516,134.64,134.62,57.1273]
[1745255011779,2.85252289,134.63,134.58,86.52749271]
[1745255011975,0.04869439,134.64,134.62,0.05169158]
[1745255012177,2.85252289,134.67,134.58,86.52749271]
[1745255012379,2.85252289,134.66,134.64,7.4259]
[1745255012575,2.85252289,134.65,134.64,7.4259]
[1745255012778,0.04735581,134.66,134.64,0.05582989]
[1745255013081,2.8998787,134.66,134.64,0.05582989]
[1745255013282,0.04735581,134.66,134.64,0.05582989]
[1745255013481,0.04735581,134.66,134.64,7.48172989]
[1745255013678,2.8998787,134.66,134.64,7.48172989]
[1745255013981,2.85252289,134.65,134.64,0.05582989]
[1745255014279,2.85252289,134.65,134.58,49.7]
[1745255014479,38.80809271,134.68,134.58,49.7]
[1745255014480,10.27912289,134.64,134.58,49.7]
[1745255014678,2.85252289,134.67,134.58,49.7]
[1745255014878,2.85252289,134.66,134.58,49.7]
[1745255015077,2.85252289,134.65,134.63,7.4265]
[1745255015277,0.04697444,134.63,134.61,0.05328599]
[1745255015678,10.27772289,134.67,134.61,0.05328599]
[1745255015980,2.85252289,134.67,134.61,0.05328599]
[1745255016181,2.85252289,134.68,134.66,7.4252]
[1745255016378,2.85252289,134.67,134.66,7.4252]
[1745255016574,2.85252289,134.68,134.64,48.28]
[1745255016772,2.85252289,134.71,134.64,48.28]
[1745255016973,0.05320815,134.67,134.65,0.05439709]
[1745255017380,2.85574491,134.66,134.65,0.05439709]
[1745255017582,0.05323693,134.67,134.65,0.05439709]
[1745255017782,2.85574491,134.66,134.65,0.05439709]
[1745255018374,10.28094491,134.66,134.65,0.05439709]
[1745255018779,2.85574491,134.66,134.59,55.7088]
[1745255018985,2.85574491,134.65,134.59,48.28]
[1745255019286,2.85574491,134.64,134.61,7.4279]
[1745255019488,2.85574491,134.63,134.61,7.4279]
[1745255019680,2.85574491,134.62,134.61,7.4279]
[1745255019985,2.85574491,134.68,134.61,0.05453024]
[1745255020180,2.85574491,134.67,134.59,48.28]
[1745255020385,2.91011498,134.66,134.63,0.04992403]
[1745255020586,2.85574491,134.65,134.63,48.28]
[1745255020786,0.04805878,134.66,134.63,48.33042621]
[1745255020989,2.85574491,134.65,134.64,7.4257]
[1745255021187,0.05511686,134.66,134.63,48.33515955]
[1745255021492,2.85910333,134.7,134.66,7.4247]
[1745255021690,2.85910333,134.69,134.66,7.4247]
[1745255021893,2.85910333,134.68,134.66,7.47408063]
[1745255022087,2.85910333,134.67,134.66,7.47408063]
[1745255022692,2.85910333,134.68,134.67,7.4246]
[1745255022895,0.0479122,134.69,134.66,0.04938063]
[1745255023196,0.0479122,134.69,134.68,7.4241]
[1745255023594,2.90791721,134.69,134.66,0.04938063]
[1745255023797,2.86000501,134.68,134.67,7.4246]
[1745255024001,0.0479122,134.69,134.66,0.04938063]
[1745255024399,0.0479122,134.69,134.68,7.4241]
[1745255024603,2.90729057,134.69,134.68,7.4241]
[1745255024900,2.90729057,134.69,134.66,0.04938063]
[1745255025099,0.0479122,134.69,134.68,7.4241]
[1745255025599,2.90749136,134.69,134.68,7.4241]
[1745255025899,0.0479122,134.69,134.68,7.4241]
[1745255026502,0.0479122,134.69,134.68,54.1641]
[1745255028496,2.85924501,134.71,134.7,7.423]
[1745255028702,12.13,134.72,134.68,46.74]
[1745255028898,6.1326,134.8,134.68,46.74]
[1745255029105,2.86073976,134.79,134.72,7.4215]
[1745255029297,2.86073976,134.78,134.68,46.74]
[1745255029493,7.4205,134.75,134.68,46.74]
[1745255029700,2.91227415,134.74,134.72,0.05104311]
[1745255029900,10.27976087,134.78,134.73,46.74]
[1745255030098,22.60361375,134.83,134.73,46.74]
[1745255030502,7.4166,134.82,134.73,69.34361375]
[1745255030704,6.2123,134.84,134.79,7.4177]
[1745255030903,7.4162,134.83,134.79,7.4177]
[1745255031102,0.05085742,134.83,134.8,0.0488727]
[1745255031606,0.05643284,134.83,134.8,0.04798307]
[1745255032204,0.05643284,134.83,134.8,7.46498307]
[1745255032401,0.05643284,134.83,134.8,0.04798307]
[1745255033507,7.4167,134.82,134.8,0.04798307]
[1745255034003,0.05643284,134.83,134.8,0.04798307]
[1745255035603,7.47243284,134.83,134.8,0.04798307]
[1745255035908,0.05643284,134.83,134.8,0.04798307]
[1745255037611,36.7566048,134.83,134.8,0.04798307]
[1745255037808,36.7566048,134.83,134.78,46.74]
[1745255038111,0.05643284,134.83,134.74,45.24]
[1745255038407,7.4177,134.8,134.74,45.24]
[1745255038612,7.4177,134.8,134.76,7.4195]
[1745255038808,48.63017196,134.84,134.74,45.24]
[1745255038809,7.4195,134.77,134.74,45.24]
[1745255039112,0.0475724,134.79,134.77,0.05322651]
[1745255039310,36.70017196,134.81,134.74,45.28930221]
[1745255039514,0.05315723,134.79,134.74,45.24]
[1745255039806,0.05315723,134.79,134.76,0.04872459]
[1745255040409,7.47145723,134.79,134.76,0.04872459]
[1745255040605,0.05315723,134.79,134.76,0.04872459]
[1745255042014,7.4191,134.77,134.76,0.04872459]
[1745255042213,2.86054597,134.79,134.74,45.24]
[1745255042414,0.05315723,134.79,134.71,45.24]
[1745255042614,7.4182,134.79,134.71,45.24]
[1745255042818,6.1337,134.8,134.75,7.4198]
[1745255043114,6.1337,134.8,134.71,45.24]
[1745255043316,0.0516374,134.79,134.76,0.04870459]
[1745255043917,0.0516374,134.79,134.76,10.04870459]
[1745255044118,36.70017196,134.78,134.71,45.24]
[1745255044319,2.1212,134.77,134.71,45.24]
[1745255044511,7.4205,134.75,134.71,52.6624]
[1745255044817,2.1212,134.77,134.71,45.24]
[1745255045317,7.47147127,134.75,134.73,0.05111712]
[1745255045505,0.05097127,134.75,134.73,0.05111712]
[1745255045714,7.4208,134.74,134.73,0.05111712]
[1745255046214,0.05097127,134.75,134.73,0.05111712]
[1745255046510,45.24,134.74,134.59,36.70017196]
[1745255046819,36.70017196,134.71,134.63,595.1065]
[1745255047015,2.80690578,134.7,134.63,595.1065]
[1745255047211,2.80690578,134.7,134.63,587.68]
[1745255047517,0.05559473,134.68,134.65,0.034008]
[1745255047817,0.05559473,134.68,134.61,45.24]
[1745255048009,36.70017196,134.67,134.61,45.24]
[1745255048205,2.80690578,134.66,134.61,45.24]
[1745255049119,0.04853886,134.65,134.61,45.24]
[1745255049719,0.04853886,134.65,134.62,7.427]
[1745255050012,0.04853886,134.65,134.61,45.24]
[1745255050619,0.04853886,134.65,134.62,7.4274]
[1745255050919,0.04853886,134.65,134.61,45.24]
[1745255051116,0.04853886,134.65,134.57,2.1336]
[1745255051322,36.70017196,134.63,134.56,7.4304]
[1745255051522,36.70017196,134.63,134.53,49.2378]
[1745255051722,36.70017196,134.6,134.54,7.4316]
[1745255051916,0.05333803,134.59,134.53,47.2795]
[1745255052120,0.05333803,134.59,134.53,45.26]
[1745255052622,36.70017196,134.58,134.53,45.26]
[1745255053317,22.67323363,134.58,134.53,45.26]
[1745255053826,22.67323363,134.58,134.53,52.6922]
[1745255054119,22.67323363,134.58,134.49,631.8]
[1745255054718,0.05171644,134.55,134.49,631.8]
[1745255055727,0.05171644,134.55,134.52,7.4328]
[1745255056424,0.05171644,134.55,134.51,7.4332]
[1745255056925,0.05171644,134.55,134.49,631.8]
[1745255057219,0.05171644,134.55,134.52,22.67323363]
[1745255057424,2.0842,134.62,134.52,22.67323363]
[1745255057623,2.0842,134.62,134.5,22.67323363]
[1745255057922,2.0842,134.62,134.58,7.4295]
[1745255058315,22.67323363,134.63,134.54,43.88]
[1745255058520,43.88,134.65,134.58,7.4293]
[1745255058726,0.05409061,134.61,134.59,0.05021363]
[1745255063123,0.05409061,134.61,134.59,7.47901363]